{"text_format":"1","workbook":"xlsx","n_sheets":10,"sheets":["1ª MEDIÇÃO","2ª MEDIÇÃO","3ª MEDIÇÃO","4ª MEDIÇÃO","5ª MEDIÇÃO","6ª MEDIÇÃO","7ª MEDIÇÃO","8ª MEDIÇÃO","9ª MEDIÇÃO","PLANILHA SINTÉTICA"],"not_rendered":{"charts":0,"images":2,"macros":1,"external_links":12,"defined_names":1440,"comments":0,"pivot_tables":0},"unopened":[],"bounds":{"document_bytes":16777216,"sheet_cells":100000,"rows_first":2000,"rows_last":500,"rows_between":2000,"halvings":0,"cell_chars":16384,"cell_head_chars":4096},"cells_cut":0,"cells_raw":0,"read":"whole","date_system":"1900"}

{"sheet":"1ª MEDIÇÃO","index":0,"n_rows":4,"n_cols":10,"rows_kept":4,"cut":false,"hidden":true,"merged":[[0,0,0,8],[1,0,1,8],[2,0,2,8]]}
["TRIBUNAL DE JUSTIÇA DE PERNAMBUCO"]
[{"$f":"#REF!","v":{"$error":"#REF!"}}]
["MEMÓRIA DE CALCULO - 1ª MEDIÇÃO"]
["ITEM","DESCRIÇÃO","QUANT.","LARG.","COMP.","ALT.","TAXA","TOTAL","UNID","MEMORIAL FOTOGRÁFICO"]

{"sheet":"2ª MEDIÇÃO","index":1,"n_rows":4,"n_cols":10,"rows_kept":4,"cut":false,"hidden":true,"merged":[[0,0,0,8],[1,0,1,8],[2,0,2,8]]}
["TRIBUNAL DE JUSTIÇA DE PERNAMBUCO"]
[{"$f":"#REF!","v":{"$error":"#REF!"}}]
["MEMÓRIA DE CALCULO - 2ª MEDIÇÃO"]
["ITEM","DESCRIÇÃO","QUANT.","LARG.","COMP.","ALT.","TAXA","TOTAL","UNID","MEMORIAL FOTOGRÁFICO"]

{"sheet":"3ª MEDIÇÃO","index":2,"n_rows":4,"n_cols":10,"rows_kept":4,"cut":false,"hidden":true,"merged":[[0,0,0,8],[1,0,1,8],[2,0,2,8]]}
["TRIBUNAL DE JUSTIÇA DE PERNAMBUCO"]
[{"$f":"#REF!","v":{"$error":"#REF!"}}]
["MEMÓRIA DE CALCULO - 3ª MEDIÇÃO"]
["ITEM","DESCRIÇÃO","QUANT.","LARG.","COMP.","ALT.","TAXA","TOTAL","UNID","MEMORIAL FOTOGRÁFICO"]

{"sheet":"4ª MEDIÇÃO","index":3,"n_rows":4,"n_cols":10,"rows_kept":4,"cut":false,"hidden":true,"merged":[[0,0,0,8],[1,0,1,8],[2,0,2,8]]}
["TRIBUNAL DE JUSTIÇA DE PERNAMBUCO"]
[{"$f":"#REF!","v":{"$error":"#REF!"}}]
["MEMÓRIA DE CALCULO - 4ª MEDIÇÃO"]
["ITEM","DESCRIÇÃO","QUANT.","LARG.","COMP.","ALT.","TAXA","TOTAL","UNID","MEMORIAL FOTOGRÁFICO"]

{"sheet":"5ª MEDIÇÃO","index":4,"n_rows":4,"n_cols":10,"rows_kept":4,"cut":false,"hidden":true,"merged":[[0,0,0,8],[1,0,1,8],[2,0,2,8]]}
["TRIBUNAL DE JUSTIÇA DE PERNAMBUCO"]
[{"$f":"#REF!","v":{"$error":"#REF!"}}]
["MEMÓRIA DE CALCULO - 5ª MEDIÇÃO"]
["ITEM","DESCRIÇÃO","QUANT.","LARG.","COMP.","ALT.","TAXA","TOTAL","UNID","MEMORIAL FOTOGRÁFICO"]

{"sheet":"6ª MEDIÇÃO","index":5,"n_rows":4,"n_cols":10,"rows_kept":4,"cut":false,"hidden":true,"merged":[[0,0,0,8],[1,0,1,8],[2,0,2,8]]}
["TRIBUNAL DE JUSTIÇA DE PERNAMBUCO"]
[{"$f":"#REF!","v":{"$error":"#REF!"}}]
["MEMÓRIA DE CALCULO - 6ª MEDIÇÃO"]
["ITEM","DESCRIÇÃO","QUANT.","LARG.","COMP.","ALT.","TAXA","TOTAL","UNID","MEMORIAL FOTOGRÁFICO"]

{"sheet":"7ª MEDIÇÃO","index":6,"n_rows":4,"n_cols":10,"rows_kept":4,"cut":false,"hidden":true,"merged":[[0,0,0,8],[1,0,1,8],[2,0,2,8]]}
["TRIBUNAL DE JUSTIÇA DE PERNAMBUCO"]
[{"$f":"#REF!","v":{"$error":"#REF!"}}]
["MEMÓRIA DE CALCULO - 7ª MEDIÇÃO"]
["ITEM","DESCRIÇÃO","QUANT.","LARG.","COMP.","ALT.","TAXA","TOTAL","UNID","MEMORIAL FOTOGRÁFICO"]

{"sheet":"8ª MEDIÇÃO","index":7,"n_rows":4,"n_cols":10,"rows_kept":4,"cut":false,"hidden":true,"merged":[[0,0,0,8],[1,0,1,8],[2,0,2,8]]}
["TRIBUNAL DE JUSTIÇA DE PERNAMBUCO"]
[{"$f":"#REF!","v":{"$error":"#REF!"}}]
["MEMÓRIA DE CALCULO - 8ª MEDIÇÃO"]
["ITEM","DESCRIÇÃO","QUANT.","LARG.","COMP.","ALT.","TAXA","TOTAL","UNID","MEMORIAL FOTOGRÁFICO"]

{"sheet":"9ª MEDIÇÃO","index":8,"n_rows":4,"n_cols":10,"rows_kept":4,"cut":false,"hidden":true,"merged":[[0,0,0,8],[1,0,1,8],[2,0,2,8]]}
["TRIBUNAL DE JUSTIÇA DE PERNAMBUCO"]
[{"$f":"#REF!","v":{"$error":"#REF!"}}]
["MEMÓRIA DE CALCULO - 9ª MEDIÇÃO"]
["ITEM","DESCRIÇÃO","QUANT.","LARG.","COMP.","ALT.","TAXA","TOTAL","UNID","MEMORIAL FOTOGRÁFICO"]

{"sheet":"PLANILHA SINTÉTICA","index":9,"n_rows":93,"n_cols":7,"rows_kept":93,"cut":false,"hidden":false,"merged":[[6,5,6,6],[0,7,0,8],[1,7,1,8],[2,7,2,8],[0,0,0,3],[0,5,0,6],[1,0,2,3],[1,5,1,6],[2,5,2,6],[92,0,92,5],[3,7,3,8],[4,7,4,8],[7,5,7,6],[7,4,8,4],[7,0,8,0],[7,2,8,2],[7,3,8,3],[7,1,8,1],[5,7,5,8],[6,7,6,8],[3,0,4,3],[3,5,3,6],[4,5,4,6],[5,0,6,3],[5,5,5,6]]}
["PODER JUDICIÁRIO",null,null,null,"Obra:","SERVIÇOS DE RECUPERAÇÃO DAS COBERTAS DO FÓRUM JUIZ DEMÓSTENES BATISTA VERAS E SUBSTITUIÇÃO DAS LAJES DOS RESERVATÓRIOS DA 1ª CÂMARA REGIONAL DE CARUARU"]
["TRIBUNAL DE JUSTIÇA DE PERNAMBUCO",null,null,null,"Local:","FÓRUM: RUA JOSÉ FLORÊNCIO FILHO, S/N - UNIVERSITÁRIO, CARUARU/PE - CÂMARA REGIONAL: RUA FREI CANECA, S/N - MAURÍCIO DE NASSAU, CARUARU/PE"]
[null,null,null,null,"Contrato:","141/2022 -TJPE"]
["DIRETORIA DE ENGENHARIA E ARQUITETURA",null,null,null,"Situação:","Encerrada"]
[null,null,null,null,"Contratada:","Concreferro Construções e Incorporações Ltda - EPP"]
["QUANTITATIVOS E PREÇOS CONTRATADOS",null,null,null,"Valor Total:",{"$f":"G93","v":275903.37}]
[null,null,null,null,"DATA:","2024-02-17"]
["ITEM","Cód. Efisco","DESCRIÇÃO","UN","QUANT. TOTAL","TOTAL"]
[null,null,null,null,null,"P. UNIT","P. TOTAL"]
["1.0",null,"ART, ADMINISTRAÇÃO E  MOBILIZAÇÃO DA OBRA"]
["1.1","439519-0","ART EXECUÇÃO DE OBRA.","UNID.",1,293.08,{"$f":"ROUND(E11*F11,2)","v":293.08}]
["1.2","401010-8","ADMINISTRAÇÃO LOCAL PELO PERÍODO DA OBRA.","UNID. / MÊS",5,15421.92,77109.600000000006]
["1.3","314578-6","MOBILIZAÇÃO DA OBRA (PESSOAL, MÁQUINAS E EQUIPAMENTOS).","UNID.",1,1644.95,1644.95]
["2.0",null,"CANTEIRO DE OBRAS",null,null,null,0]
["2.1","501875-7","PLACA DE OBRA EM LINA PLÁSTICA IMPRESSÃO DIGITAL ALTA RESOLUÇÃO COM ACABAMENTO EM ILHÓS, FIXAÇÃO EM ABRAÇADEIRAS DE NYLON, ESTRUTURA EM FERRO GALVANIZADO. (02 PLACAS 2,00M X 2,00M).","M²",4,452.46,1809.84]
["2.2","-","LOCAÇÃO DE CONTAINER PARA USO DE ESCRITÓRIO MEDIDO 2,3 X 6,0M, ALT. = 2,5M, COM 1 SANITÁRIO, SEM DIVISÓRIAS INTERNAS E SEM MOBILIÁRIO.","UNID. / MÊS",5,1039.82,5199.1000000000004]
["2.3","-","LOCAÇÃO DE CONTAINER 2,30 X 6,00M, ALT. = 2,50M, PARA SANITARIO, COM 4 BACIAS, 8 CHUVEIROS, 1 LAVATORIO E 1 MICTORIO.","UNID. / MÊS",5,1296.6500000000001,6483.25]
["2.4","349916-2","FRETE PARA ENTREGA OU RETIRADA DE CONTAINER PARA OBRA EM CARUARU EM GUINDAUTO MUNCK, MODELO ARGOS 20.5 COM CAPACIDADE PARA 6,0 TON A 4,0M DE RAIO. ","UNID.",4,1208.95,4835.8]
["2.5","439634-0","LIGAÇÃO PROVISÓRIA DE ENERGIA. (CONTAINER).","UNID.",0,1373.22,0]
["2.6","401750-1","LIGAÇÕES PROVISÓRIAS DE ÁGUA E SANITÁRIO. (CONTAINER).","UNID.",0,900.79,0]
["3.0",null,"SERVIÇOS PRELIMINARES",null,null,null,0]
["3.1","430047-5","FORNECIMENTO/INSTALAÇÃO LONA PLÁSTICA PRETA, PARA PROTEÇÃO, ESPESSURA 150 MICRAS.","M²",250,6.94,1735]
["3.2","483506-9","FORNECIMENTO E COLOCAÇÃO DE CHAPA DE MADEIRA COMPENSADA, E = 6MM, PARA PROTEÇÃO DOS PISOS.","M²",250.00000000000003,25.85,6462.5]
["4.0",null,"LOCAÇÃO DE MÁQUINAS E EQUIPAMENTOS",null,null,null,0]
["4.1","411686-0","LOCAÇÃO DE ANDAIME METÁLICO TUBULAR TIPO TORRE INCLUINDO PLATAFORMA METÁLICA, GUARDA CORPO METÁLICO, ESCADA, INCLUSIVE MONTAGEM E DESMONTAGEM.","M X MÊS",180,40.729999999999997,7331.4]
["5.0",null,"DEMOLIÇÃO, TRANSPORTE E REMOÇÃO",null,null,null,0]
["5.1","-","DEMOLIÇÃO DE ARGAMASSAS, DE FORMA MANUAL, SEM REAPROVEITAMENTO. ","M²",82.11,3.68,302.16000000000003]
["5.2","-","DEMOLIÇÃO DE REVESTIMENTO CERÂMICO, DE FORMA MANUAL, SEM REAPROVEITAMENTO. AF_12/2017","M²",0,25.29,0]
["5.3","-","TRANSPORTE HORIZONTAL COM JERICA DE 60L, DE MASSA/ GRANEL.","M³ X KM",0.46,1633.24,751.29]
["5.4","-","ALUGUEL DE CAÇAMBA ESTACIONÁRIA COM ATÉ 6M³ COM DESTINAÇÃO FINAL DE RESÍDUOS SÓLIDOS.","UNID.",4,532.44000000000005,2129.7600000000002]
["5.5","-","TAXA DE DESCARTE DE RESÍDUOS DA CONSTRUÇÃO CIVIL.","T",0,50.1,0]
["6.0",null,"RESERVATÓRIO SUPERIOR",null,null,null,0]
["6.1","445368-9","RECUPERAÇÃO DE PILARES, LAJES E VIGAS INCLUINDO PREPARAÇÃO DO SUBSTRATO PARA REPARO EM ESTRUTURA DE CONCRETO ARMADO COM GROUT TIX, CONSIDERANDO A ESCARIFICAÇÃO DO CONCRETO, ESCOVAMENTO DO FERRO E LIMPEZA DA SUPERFÍCIE.","M²",0,151.1,0]
["6.2","-","RESTAURO - RECUPERAÇÃO DE ARMADURAS (AÇO CA-50 6,3 A 12,5MM) DE CONCRETO ARMADO, INCLUSIVE LIXAMENTO E PROTEÇÃO COM TINTA NITOPRIMER","M",3,1034.29,3102.87]
["6.3","432302-5","CHAPISCO APLICADO EM ALVENARIA (SEM PRESENÇA DE VÃOS) E ESTRUTURAS DE CONCRETO DE FACHADA, COM COLHER DE PEDREIRO. ARGAMASSA TRAÇO 1:3 COM PREPARO EM BETONEIRA 400L. AF_06/2014","M²",48.42,7.76,375.74]
["6.4","432314-9","EMBOÇO OU MASSA ÚNICA EM ARGAMASSA TRAÇO 1:2:8, PREPARO MECÂNICO COM BETONEIRA 400L, APLICADA MANUALMENTE EM PANOS CEGOS DE FACHADA (SEM PRESENÇA DE VÃOS), ESPESSURA DE 25MM. ","M²",48.42,46.99,2275.2600000000002]
["6.5","410483-8","CERÂMICA 10 X 10CM ELIZABETH OU EQUIVALENTE, LINHA CRISTAL, TIPO A, NA COR MARROM OU SIMILAR, ASSENTADAS COM ARGAMASSA COLANTE AC III QUARTZOLIT OU EQUIVALENTE E REJUNTADAS COM ARGAMASSA DE REJUNTAMENTO FLEXÍVEL QUARTZOLIT OU EQUIVALENTE.","M²",0,98.31,0]
["6.6","505644-6","CONTRAPISO EM ARGAMASSA TRAÇO 1:4 (CIMENTO E AREIA), PREPARO MECÂNICO COM BETONEIRA 400L, ESPESSURA 3CM. ","M²",82.11,44.67,3667.85]
["6.7","-","FORNECIMENTO E INSTALAÇÃO DE TAMPA EM CONCRETO ARMADO 80 X 80 X 5CM PARA RESERVATÓRIO SUPERIOR.","UNID.",0,171.02,0]
["6.8","407119-0","IMPERMEABILIZAÇÃO DE SUPERFICIE COM MANTA ASFÁLTICA EM POLIESTER ALUMINIZADO, UMA CAMADA, INCLUSIVE APLICAÇÃO DE PRIMER ASFÁLTICO, E = 3MM.","M²",82.11,120.61,9903.2900000000009]
["6.9","460739-2","IMPERMEABILIZAÇÃO DE SUPERFICIE COM IMPERMEABILIZANTE SEMI-FLEXIVEL, 3 DEMÃOS, REFORÇADO COM VÉU DE POLIÉSTER (MAV). AF_06/2018","M²",103.75,51.96,5390.85]
["7.0",null,"COBERTA ",null,null,null,0]
["7.1","490714-0","RETIRADA DE RUFO DE CONCRETO.","M",59.67,5.98,356.83]
["7.2","-","RUFO DE CONCRETO ARMADO FCK = 20MPA L = 30CM E H = 5CM.","M",59.67,48.02,2865.35]
["7.3","481704-4","REMOÇÃO DE TELHAMENTO COM TELHAS ONDULADAS DE FIBROCIMENTO.","M²",773.04,6.73,5202.5600000000004]
["7.4","-","REINSTALAÇÃO DE TELHA ONDULADA DE 6MM FIBROCIMENTO, COM RECOBRIMENTO LATERAL DE 1/4 DE ONDA PARA TELHADO COM INCLINAÇÃO MAIOR QUE 10°, COM ATÉ 2 ÁGUAS.","M²",386.52,12.2,4715.54]
["7.5","411558-9","TELHAMENTO COM TELHA ONDULADA DE 6MM FIBROCIMENTO, COM RECOBRIMENTO LATERAL DE 1/4 DE ONDA PARA TELHADO COM INCLINAÇÃO MAIOR QUE 10°, COM ATÉ 2 ÁGUAS.","M²",0,68.02,0]
["7.6","-","RETIRADA DE CUMEEIRA PARA RELHA DE FIBROCIMENTO ONDULADA E = 6MM. ","M²",31.1,3.71,115.38]
["7.7","-","CUMEEIRA PARA TELHA DE FIBROCIMENTO ONDULADA E = 6MM, INCLUSO ACESSÓRIOS DE FIXAÇÃO E IÇAMENTO. ","M",0,117.86,0]
["7.8","334488-6","RETIRADA DE MANTA ALUMINIZADA. ","M²",0,9.17,0]
["7.9","407119-0","IMPERMEABILIZAÇÃO DE SUPERFÍCIE COM MANTA ASFÁLTICA EM POLIESTER ALUMINIZADO, UMA CAMADA, INCLUSIVE APLICAÇÃO DE PRIMER ASFÁLTICO, E = 3MM.","M²",163.58000000000001,120.61,19729.38]
["8.0",null,"COBERTA",null,null,null,0]
["8.1","357039-8","RETIRADA DE CALHA/ RUFO METÁLICO.","M",135.19999999999999,14.57,1969.86]
["8.2","-","CALHA EM CHAPA DE ALUMÍNIO, ESPESSURA DE 0,80MM, LARGURA DE 1.000MM (LIGA 1.200 - H14), INCLUSO TRANSPORTE VERTICAL.","M",54.73,169.86,9296.44]
["8.3","-","FORNECIMENTO COM INSTALAÇÃO DE RUFO EM CHAPA DE ALUMÍNIO, ESPESSURA DE 0,8MM, DESENVOLVIMENTO DE ATÉ 30CM, INCLUSO TRANSPORTE VERTICAL.","M",0,49.56,0]
["8.4","-","RETIRADA PARA REAPROVEITAMENTO DE TELHA TERMOISOLANTE TERMOROOF EPS FABRICANTE DÂNICA DE REVESTIMENTO SUPERIOR EM AÇO GALVALUME E INFERIOR EM FILME DE ALUMÍNIO.","M²",276.72000000000003,3.21,888.27]
["8.5","-","REINSTALAÇÃO DE TELHA TIPO SANDUICHE TERMO ROOF PUR DÂNICA OU EQUIVALENTE COM REVESTIMENTO AÇO/AÇO(50), FACE SUPERIOR/ INFERIOR 0.50/0.50 RAL 9003 E ISOLAMENTO EM POLIURETANO PUR E = 50MM, INCLUSO IÇAMENTO. ","M²",138.36000000000001,12.06,1668.62]
["8.6","-","COBERTUTA COM TELHA TIPO SANDUICHE TERMO ROOF PUR DÂNICA OU EQUIVALENTE COM REVESTIMENTO AÇO/AÇO(50), FACE SUPERIOR/ INFERIOR 0.50/0.50 RAL 9003 E ISOLAMENTO EM POLIURETANO PUR E = 50MM - FORNECIMENTO E INSTALAÇÃO.","M²",129.80000000000001,318.70999999999998,41368.559999999998]
["8.7","334488-6","RETIRADA DE MANTA ALUMINIZADA. ","M²",54,9.17,495.18]
["8.8","407119-0","IMPERMEABILIZAÇÃO DE SUPERFÍCIE COM MANTA ASFÁLTICA EM POLIESTER ALUMINIZADO, UMA CAMADA, INCLUSIVE APLICAÇÃO DE PRIMER ASFÁLTICO, E = 3MM.","M²",72.809960000000004,120.61,8781.61]
["9.0",null,"FORRO",null,null,null,0]
["9.1","-","REMOÇAO DE FORROS DE DRYWALL, PVC E FIBROMINERAL, DE FORMA MANUAL, SEM REAPROVEITAMENTO. ","M²",100,2.2599999999999998,226]
["9.2","474409-8","FORRO EM DRYWALL, PARA AMBIENTES COMERCIAIS, INCLUSIVE ESTRUTURA DE FIXAÇÃO. AF_05/2017_P","M²",100,92.67,9267]
["10.0",null,"PINTURA",null,null,null,0]
["10.1","457784-1","APLICAÇÃO DE FUNDO SELADOR ACRÍLICO EM TETO, UMA DEMÃO.","M²",100,3.82,382]
["10.2","441105-6","APLICAÇÃO E LIXAMENTO DE MASSA LÁTEX EM TETO, DUAS DEMÃOS.","M²",100,31.5,3150]
["10.3","441883-2","APLICAÇÃO MANUAL DE PINTURA COM TINTA LÁTEX ACRÍLICA EM TETO, DUAS DEMÃOS.","M²",533.52,20.57,10974.51]
["11.0",null,"INSTALAÇÕES PROVISÓRIAS (HIDROSANITÁRIAS)",null,null,null,0]
["11.1","-","CAIXA D'ÁGUA EM POLIÉSTER REFORÇADO COM FIBRA DE VIDRO, 10000 LITROS - FORNECIMENTO E INSTALAÇÃO. ","UNID.",1,7621.21,7621.21]
["11.2","-","REGISTRO DE GAVETA BRUTO, LATÃO, ROSCÁVEL, 2\" - FORNECIMENTO E INSTALAÇÃO.","UNID.",1,183.25,183.25]
["11.3","-","TUBO, PVC, SOLDÁVEL, DN 60MM, INSTALADO EM RESERVAÇÃO DE ÁGUA DE EDIFICAÇÃO QUE POSSUA RESERVATÓRIO DE FIBRO/FIBROCIMENTO - FORNECIMENTO E INSTALAÇÃO. ","M",18,53.26,958.68]
["12.0",null,"TRANSPORTE E REMOÇÕES",null,0,null,0]
["12.1","-","TRANSPORTE HORIZONTAL COM JERICA DE 60L, DE MASSA/ GRANEL.","M³ X KM",2.9999999999999916E-2,1633.24,49]
["12.2","-","ALUGUEL DE CAÇAMBA ESTACIONÁRIA COM ATÉ 6M³ COM DESTINAÇÃO FINAL DE RESÍDUOS SÓLIDOS.","UNID.",1,532.44000000000005,532.44000000000005]
["12.3","-","TAXA DE DESCARTE DE RESÍDUOS DA CONSTRUÇÃO CIVIL.","T",0,50.1,{"$f":"ROUND(E75*F75,2)","v":0}]
["13.0",null,"EXECUÇÃO DAS LAJES DOS RESERVATÓRIOS",null,0,null,0]
["13.1","-","DEMOLIÇÃO DE LAJES, DE FORMA MECANIZADA COM MARTELETE, SEM REAPROVEITAMENTO.","M³",0,171.47,0]
["13.2","428670-7","EXECUÇÃO DE LAJE TIPO TRELIÇADA β 13, INCLUINDO VIGOTAS TRELIÇADAS COM EPS, ESCORAMENTO.","M²",0,195.04,0]
["13.3","435327-7","CONCRETO ESTRUTURAL, FCK = 25MPA, CONDIÇÃO A (NBR-12655) LANÇADO ESTRUTURAS E ADENSADO.","M³",0,971.88,0]
["13.4"," 455027-7 ","MONTAGEM E DESMONTAGEM DE FORMA DE LAJE MACIÇA/ TRELIÇADA, PÉ-DIREITO SIMPLES, EM CHAPA DE MADEIRA COMPENSADA RESINADA, 4 UTILIZAÇÕES, INCLUSO ESCORAMENTO METÁLICO.","M²",0,57.27,0]
["13.5","-","FORNECIMENTO E INSTALAÇÃO DE TAMPA EM CONCRETO ARMADO 80 X 80 X 5CM PARA RESERVATÓRIO SUPERIOR.","UNID.",0,171.02,0]
["13.6","411552-0","CONTROLE TECNOLÓGICO DO CONCRETO COM ENSAIO DE COMPRESSÃO DE CORPOS DE PROVA CILÍNDRICOS (NBR 5739)/2007, COM TRANSPORTE PARA O LABORATÓRIO REALIZADO PELO CLIENTE.","UNID.",0,18.79,0]
["14.0",null,"IMPERMEABILIZAÇÃO",null,0,null,0]
["14.1","489584-3","IMPERMEABILIZAÇÃO DE SUPERFICIE COM MANTA ASFÁLTICA EM POLIESTER ALUMINIZADO, UMA CAMADA, INCLUSIVE APLICAÇÃO DE PRIMER ASFÁLTICO, E = 3MM.","M²",0,120.61,0]
["14.2","460739-2","IMPERMEABILIZAÇÃO DE SUPERFICIE COM IMPERMEABILIZANTE SEMI-FLEXIVEL, 3 DEMÃOS, REFORÇADO COM VÉU DE POLIÉSTER (MAV). AF_06/2018","M²",0,51.96,0]
["15.0",null,"REVESTIMENTO DO PISO E PAREDES",null,0,null,0]
["15.1","-","PROTEÇÃO MECÂNICA DE SUPERFICIE HORIZONTAL COM ARGAMASSA DE CIMENTO E AREIA, TRAÇO 1:3, E = 3CM. ","M²",0,55.91,0]
["15.2","432302-5","CHAPISCO APLICADO EM ALVENARIA (SEM PRESENÇA DE VÃOS) E ESTRUTURAS DE CONCRETO DE FACHADA, COM COLHER DE PEDREIRO. ARGAMASSA TRAÇO 1:3 COM PREPARO EM BETONEIRA 400L. AF_06/2014","M²",0,7.76,0]
["15.3","407544-7","(COMPOSIÇÃO REPRESENTATIVA) DO SERVIÇO DE EMBOÇO OU MASSA ÚNICA EM ARGAMASSA TRAÇO 1:2:8, PREPARO MECÂNICO COM BETONEIRA 400L, APLICADA MANUALMENTE EM PANOS DE FACHADA, ESPESSURA DE 25MM. ","M²",0,52.57,0]
["16.0",null,"LIMPEZA FINAL E DESMOBILIZAÇÃO DA OBRA",null,0,null,0]
["16.1","431654-1","LIMPEZA GERAL DA OBRA.","M²",750.61,3.54,2657.16]
["16.2","314578-6","DESMOBILIZAÇÃO DA OBRA (PESSOAL, MÁQUINAS E EQUIPAMENTOS).","UNID.",1,1644.95,1644.95]
["TOTAL DA OBRA",null,null,null,null,null,{"$f":"SUM(G11:G92)","v":275903.37}]